Cogmind - Beta 13 @@@ ROGUE MODE // 2024.06.04 @ 19:47:17 Player: vilepis Result: Destroyed by G-34 Mercenary with Small Laser Performance ------------- Evolutions (0) 0 Regions Visited (1) 200 Robots Destroyed (11) 55 Value Destroyed (194) 194 Prototype IDs (0) 0 Alien Tech Used (0) 0 Bonus (0) 0 TOTAL SCORE: 449 Bonus ------- None Cogmind --------- Core Integrity 0/250 Matter 115/300 Energy 100/100 System Corruption 0% Temperature Cool (6) Movement Core (150) Ox2 Location -10/Materials Parts ------- > --- POWER (1) -------- (None) > --- PROPULSION (2) --- (None) > --- UTILITY (2) ------ Small Storage Unit Seismic Detector > --- WEAPON (2) ------- Light Assault Rifle > --- INVENTORY (8) ---- High-capacity Matter Pod (0) Sensor Array Light Assault Rifle Hammer Peak State ------------ > --- POWER ------------ Ion Engine > --- PROPULSION ------- Aluminum Leg Aluminum Leg > --- UTILITY ---------- Small Storage Unit Seismic Detector > --- WEAPON ----------- Light Assault Rifle Light Assault Rifle > --- INVENTORY -------- EM Pulse Gun [Rating: 7] Favorites ----------- Power Ion Engine Engine Ion Engine Propulsion Aluminum Leg Leg Aluminum Leg Utility Small Storage Unit Device Seismic Detector Storage Small Storage Unit Weapon Light Cannon Ballistic Gun Light Assault Rifle Ballistic Cannon Light Cannon Build | -11 -10 ------- Run | Yrd Mat Slots Evolved . | . . Power . | . . Propulsion . | . . Utility . | . . Weapon . | . . Parts Attached 15 | 6 9 Power 1 | 1 . Engine 1 | 1 . Core . | . . Reactor . | . . Propulsion 3 | 2 1 Treads . | . . Leg 3 | 2 1 Wheel . | . . Hover . | . . Flight . | . . Utility 6 | 1 5 Device 5 | . 5 Storage 1 | 1 . Processor . | . . Hackware . | . . Protection . | . . Artifact . | . . Weapon 5 | 2 3 Energy Gun . | . . Energy Cannon . | . . Ballistic Gun 3 | 2 1 Ballistic Cannon 2 | . 2 Launcher . | . . Special Weapon . | . . Impact Weapon . | . . Slashing Weapon . | . . Piercing Weapon . | . . Special Melee Weapon . | . . Unidentified Prototypes . | . . Parts Lost 5 | . 5 Power 1 | . 1 Propulsion 2 | . 2 Utility . | . . Weapon 2 | . 2 Highest Loss Streak 5 | . 5 To Critical Strikes . | . . Average Slot Usage (%) 95 | . 95 Engine 13 | . 13 Leg 25 | . 25 Device 13 | . 13 Storage 14 | . 14 Ballistic Gun 3 | . 3 Ballistic Cannon 23 | . 23 Naked Turns . | . . Heaviest Build 17 | 12 17 Greatest Support 20 | 20 20 Greatest Overweight (x) 4 | . 4 Average Overweight (x) . | . . Largest Inventory Capacity 8 | 8 8 Average Capacity 7 | 6 8 Most Carried 6 | 1 6 Average Carried 3 | . 4 Final Capacity 8 | 8 8 Final Carried 4 | 1 4 Class Distribution -------------------- 100% | Mutant Dominant Class ---------------- Mutant | -10/Materials Resources | -11 -10 ----------- Run | Yrd Mat Matter Collected 406 | 231 175 Remotely . | . . Salvage Created 148 | . 148 Parts 21 | . 21 Haulers Intercepted . | . . Recyclers Shooed 2 | . 2 Parts Field Recycled . | . . Retrieved Matter . | . . Parts Self-Destructed . | . . Prevented . | . . Kills | -11 -10 ------- Run | Yrd Mat Combat Hostiles Destroyed 9 | . 9 Guns 2 | . 2 Cannons 7 | . 7 Classes Destroyed 3 | . 3 Watcher 2 | . 2 Swarmer 6 | . 6 Grunt 3 | . 3 Best Kill Streak 3 | . 3 Combat Bots Only 3 | . 3 Max Kills in Single Turn 1 | . 1 Gunslinging . | . . Exploded . | . . Melee . | . . Uniques/NPCs Destroyed . | . . Combat | -11 -10 -------- Run | Yrd Mat Hostile Shots Fired 140 | . 140 Missed 47 | . 47 Damage Taken 929 | . 929 Core 255 | . 255 Absorbed by Shields . | . . Core Remaining (%) 100 | 100 . Volleys Fired 45 | 1 44 Largest 2 | 2 2 Hottest 70 | 40 70 Shots Fired 80 | 2 78 Gun 18 | 2 16 Cannon 62 | . 62 Launcher . | . . Special . | . . Kinetic 80 | 2 78 Thermal . | . . Explosive . | . . Electromagnetic . | . . Robot Hit Streak 4 | . 4 Robot Miss Streak 8 | 2 8 Penetration Max . | . . Secondary Targets . | . . Shots Hit Robots 32 | . 32 Core Hits 12 | . 12 Critical Kills . | . . Critical Parts Destroyed . | . . Critical Strikes 2 | . 2 Blast 2 | . 2 Melee Attacks . | . . Impact . | . . Slashing . | . . Piercing . | . . Sneak Attacks . | . . Combat Hostiles . | . . Follow-up Attacks . | . . Damage Inflicted 629 | . 629 Guns 90 | . 90 Cannons 539 | . 539 Explosions . | . . Melee . | . . Ramming . | . . Kinetic 629 | . 629 Thermal . | . . Explosive . | . . Electromagnetic . | . . Impact . | . . Slashing . | . . Piercing . | . . Highest Corruption . | . . Average Corruption . | . . Corruption Purged . | . . Corruption Blocked . | . . Overload Shots . | . . Overflow Damage 14 | . 14 Projectiles 14 | . 14 Explosions . | . . Melee . | . . Knockbacks 8 | . 8 Impact . | . . Kinetic 8 | . 8 Secondary . | . . Self-Inflicted Damage . | . . Shots . | . . Rammed . | . . Targets Rammed . | . . Kicked . | . . Crushed . | . . Highest Temperature 141 | . 141 Average Temperature 40 | . 40 Received Heat Transfer 318 | . 318 Siege Activations . | . . Robots Corrupted . | . . Combat Hostiles . | . . Parts Fried . | . . Impact Corruptions . | . . Robots Melted . | . . Combat Hostiles . | . . Parts Melted . | . . Heat Transferred . | . . Parts Sabotaged . | . . Parts Stolen . | . . Parts Stripped . | . . Power Chain Reactions . | . . Alert | -11 -10 ------- Run | Yrd Mat Peak Influence 206 | . 206 Initial . | . . Average 58 | . 69 Maximum Alert Level 1 | . 1 Low Security (%) 98 | 100 98 Level 1 1 | . 1 Level 2 . | . . Level 3 . | . . Level 4 . | . . Level 5 . | . . High Security . | . . Max Security . | . . Squads Dispatched 1 | . 1 Investigation 1 | . 1 Extermination . | . . Reinforcement . | . . Assault . | . . Garrison . | . . Intercept . | . . Searches Triggered . | . . Construction Impeded . | . . Haulers Reinforced . | . . Active Scanning Responses . | . . Cargo Convoy Interrupts . | . . Stealth | -11 -10 --------- Run | Yrd Mat Distress Signals . | . . Communications Jammed . | . . Distress Signals . | . . Times Spotted 14 | . 14 Peak Tracking Total 5 | . 5 Tactical Retreats . | . . Traps | -11 -10 ------- Run | Yrd Mat Traps Triggered 1 | . 1 Indirectly . | . . Trap Hack Attempts . | . . Triggered . | . . Disarmed . | . . Reprogrammed . | . . Reused . | . . Traps Extracted . | . . Installed . | . . Triggered . | . . Machines | -11 -10 ---------- Run | Yrd Mat Machines Disabled . | . . Max in Single Turn . | . . Machines Repaired . | . . Machines Dismantled . | . . Machines Sabotaged . | . . Overloaded Fab Kills . | . . Hacking | -11 -10 --------- Run | Yrd Mat Machines Accessed 3 | . 3 Terminals 2 | . 2 Fabricators . | . . Repair Stations . | . . Recycling Units 1 | . 1 Scanalyzers . | . . Garrison Access . | . . Total Hacks 6 | . 6 Successful 4 | . 4 Failed 2 | . 2 Catastrophic . | . . Database Lockouts . | . . Manual . | . . Terminals 3 | . 3 Fabricators . | . . Repair Stations . | . . Recycling Units 3 | . 3 Scanalyzers . | . . Garrison Access . | . . Terminal Hacks 1 | . 1 Patrol Status 1 | . 1 Fabricator Hacks . | . . Repair Station Hacks . | . . Recycling Unit Hacks 3 | . 3 Recycle Component 1 | . 1 Process 1 | . 1 Retrieve Components 1 | . 1 Scanalyzer . | . . Garrison Access Hacks . | . . Unauthorized Hacks . | . . Terminals . | . . Fabricators . | . . Repair Stations . | . . Recycling Units . | . . Scanalyzers . | . . Garrison Access . | . . Data Cores Recovered . | . . Used . | . . Hacking Detections 1 | . 1 Full Trace Events . | . . Feedback Events . | . . Feedback Blocked . | . . Robot Schematics Acquired . | . . Robots Built . | . . Authchips . | . . Time . | . . Total Robot Build Rating . | . . Part Schematics Acquired . | . . Parts Built . | . . Authchips . | . . Time . | . . Total Part Build Rating . | . . Parts Repaired . | . . Time . | . . Parts Recycled 1 | . 1 Recycled Matter 109 | . 109 Retrieved Matter . | . . Retrieved Components 1 | . 1 Parts Scanalyzed . | . . Part Schematics Acquired . | . . Parts Damaged . | . . Bothacking | -11 -10 ------------ Run | Yrd Mat Used RIF Installer . | . . Robots Hacked . | . . Non-combat . | . . Combat . | . . Robot Hacks Applied . | . . Relay Couplers Released . | . . Fabnet Peak Effective % . | . . Robots Rewired . | . . Allies Hacked . | . . Hacks Repelled . | . . Allies | -11 -10 -------- Run | Yrd Mat Total Allies . | . . Largest Group . | . . Highest-Rated Group . | . . Highest-Rated Ally . | . . Total Orders . | . . Ally Attacks . | . . Total Damage . | . . Kills . | . . Allies Corrupted . | . . Allies Melted . | . . Intel | -11 -10 ------- Run | Yrd Mat Robot Analysis Total . | . . Derelict Logs Recovered . | . . Drone Launches . | . . Drone Recoveries . | . . Exploration | -11 -10 ------------- Run | Yrd Mat Turns Passed 545 | 87 458 Spaces Moved 315 | 65 250 Core 6 | 4 2 Treads . | . . Legs 309 | 61 248 Wheels . | . . Hover . | . . Flight . | . . Fastest Speed 50 | 50 120 Average Speed 119 | 115 120 Slowest Speed 250 | 120 250 Overloaded Moves . | . . Propulsion Burnouts . | . . Robots Hopped . | . . Cave-ins Triggered . | . . Exploration Rate (%) 22 | 4 40 Regions Visited 1 Branch Regions . Pre-discovered Areas . | . . Known Exits Taken . | . . Unknown Exits Taken 1 | 1 . Scrap Searched . | . . Spaces Dug . | . . Terrain Destroyed . | . . Melee . | . . Projectile . | . . AOE . | . . Terrain Rammed . | . . Walls Destroyed . | . . Machines Disabled . | . . Actions | -11 -10 --------- Run | Yrd Mat Total 400 | 72 328 Wait 19 | . 19 Move 314 | 64 250 Hop . | . . Pick Up 6 | 1 5 Fast Attach 7 | 6 1 Attach 1 | . 1 Detach . | . . Swap 7 | . 7 Drop 1 | . 1 Fire 45 | 1 44 Melee . | . . Ram . | . . Kick . | . . Crush . | . . Escape Stasis . | . . Rewire . | . . Trap . | . . Miscellaneous . | . . Route ------- -11/Scrapyard -10/Materials (discovered 1 exit: [*Mat]) History --------- Turn | Location | Event 3 | -11/Scrapyard | Discovered new exit (range 15) 88 | -11/Scrapyard | Entered Materials 314 | -10/Materials | Build established: Mutant 448 | -10/Materials | Discovered new exit (range 7) 523 | -10/Materials | Core integrity fell below 50% 536 | -10/Materials | Core integrity fell below 20% 546 | -10/Materials | Destroyed by G-34 Mercenary with Small Laser Last Messages --------------- Downloaded coordinate data. 00441_ K-01 Serf collects debris. 00448_ EXIT=FOUND 00460_ Connecting with Terminal... 00478_ S-10 Pest knocked back. 00478_ S-10 Pest destroyed. 00484_ Critical hit (Burn: +37). 00486_ Lgt. Cannon destroyed. 00487_ Acquired 2 matter. 00507_ Aluminum Leg destroyed. 00513_ S-10 Pest knocked back. 00518_ Aluminum Leg destroyed. 00519_ G-47 Trooper knocked back. 00526_ Lgt. Cannon destroyed. 00527_ M-13 Machinist repairs S-10 Pest. 00529_ M-13 Machinist repairs Flight Unit. 00530_ Ion Engine destroyed. 00536_ S-10 Pest destroyed. 00536_ M-13 Machinist repairs Flight Unit. 00541_ S-10 Pest destroyed. Map ----- +----------------------------------------------------+ | | | | | | | #########?????????????????????????????????????? | | ??????????????????????????????????????? | | """ """ #?????????????????????????????????????? | | """ """ #???????????# #???????????????????????? | | """ """ #?######### #????????????????????????? | | #?# #????????????????????????? | | #?# #???????????????????????????? | | #+######### #+######??????????????????????? | | + #??????????????????????? | | ############## *#??????????????????????? | | #??#####?????# [ #??????????????????????? | | #??# #?????# "Y" #??????????????????????? | | #??# < #?????# """ #??????????????????????? | | #??# #?????# #######????????????????? | | #### ##########+### ###+####?????????? | | * #?????????? | | %= % +?????????? | | % %% % #?????????? | | ########+###########+###r """ """ #?????????? | | ???# #????? ?# """ """ #?????????? | | ???# | "" #????? ?#%m""" """ #?????????? | | ???# "" #???? ** # g g[ #?????????? | | ???# """ T" #???? ** # @ #?????????? | | ???# """ "" #??? ** # """ """ #?????????? | | ???# """ "" #??? # """ """ #?????????? | | ???# #??######## """ """ #?????????? | | ???# #?????????# #?????????? | | ???###########?????????# #?????????? | | ???????????????????????# """ """ #?????????? | | ??????????############## """ """ #?????????? | | ???????? """ """ #?????????? | | ???????? #?????????? | | ???????? !#???? "???? | | ????????? """% """ #??"" "???? | | ????????? """ """ # """ ""??? | | ?????????? """ """ + """ ""??? | | ?????????? # """ ""??? | | ?????????? #?? ??? | | ??????????? ###############" "#### #???? ? | | ??????????? ???????????????#"R"???# #??????+#?? | | ???????????????????????????#"?????# #?????????? | | ??????????????????????????????#####+#####?? #?? | | ??????????????????????????????# #?? #?? | | ??????????????????????????????# "" #?? #?? | | ??????????????????????????????# T" ### #?? | | ??????????????????????????????# "" # #?? | | ??????????????????????????????# ! # #?? | +----------------------------------------------------+ Best States ------------- Heat Dissipation 25 Energy Generation 10 Energy Capacity 250 Matter Stores 269 Matter Capacity 300 Sight Range 16 Robot Scan Range 14 Terrain Scan Density 10 Evasion (%) 55 Item Schematics ----------------- None Robot Schematics ------------------ None Fabricated ------------ Nothing Alien Tech Used ----------------- None Achievements -------------- None Challenges ------------ None Game ------ Seed GravmagAntigravCanceller Manual? 0 Play Time 00:12:52 Cumulative 1.8 hours Start 2024.06.04 @ 19:38:01 End 2024.06.04 @ 19:47:17 Sessions 1 Manual Loads 0 Difficulty Rogue Special Mode None Game No. 6 Rogue 6 Adventurer 0 Explorer 0 Win Type - Total 0 Types 0/0/0/0/0/0/0/0/0 Lore% 0 Gallery% 6 Achievement% 7 Wizard Run 0 Options --------- Layout 1 ASCII 0 Keyboard 0 Movement Mouse Keybinds 0 Fullscreen 2 Font 32/SmallcapsGlow Map View 50x35 Zoom Use 0% Tactical HUD 1 Map Filters NONE Filters NONE Steam 1 RUN: eb7b09fb-b2b9-47e0-8a99-aa2963a15a9f